bitfinex/quotes_BTCUSD_20251009
["timestamp","ask_amount","ask_price","bid_price","bid_amount"]
[1760002166979,0.16432144,121750.0,121740.0,0.10422987]
[1760002167132,0.16432144,121750.0,121740.0,0.05619987]
[1760002168555,0.16432144,121750.0,121740.0,0.10422987]
[1760002168769,0.16432144,121750.0,121740.0,0.44612815]
[1760002168969,0.16432144,121750.0,121740.0,0.10422987]
[1760002169171,0.16432144,121750.0,121740.0,0.44612815]
[1760002169796,0.16432144,121750.0,121740.0,0.10422987]
[1760002170001,0.16432144,121750.0,121740.0,0.44612815]
[1760002171529,0.16432144,121750.0,121740.0,0.10422987]
[1760002171757,0.16432144,121750.0,121740.0,0.44612815]
[1760002175255,0.16432144,121750.0,121740.0,0.10422987]
[1760002175484,0.16432144,121750.0,121740.0,0.44612815]
[1760002177008,0.16432144,121750.0,121740.0,0.61041269]
[1760002180931,0.16432144,121750.0,121740.0,0.26851441]
[1760002181139,5.04e-05,121750.0,121740.0,0.69353475]
[1760002186455,0.111247,121770.0,121760.0,0.34189828]
[1760002186667,0.13182791,121770.0,121760.0,0.39774828]
[1760002186967,0.13182791,121770.0,121760.0,0.44572828]
[1760002187523,0.13182791,121770.0,121760.0,0.39774828]
[1760002187724,0.13182791,121770.0,121760.0,0.05585]
[1760002187871,0.13182791,121770.0,121760.0,0.10383]
[1760002188072,0.13182791,121770.0,121760.0,0.05585]
[1760002188073,0.13382791,121770.0,121760.0,0.05585]
[1760002188752,0.13382791,121770.0,121760.0,0.02357]
[1760002188953,0.13582791,121770.0,121760.0,0.02357]
[1760002189434,0.16425755,121760.0,121750.0,0.07155]
[1760002189642,0.16425755,121760.0,121750.0,0.05585]
[1760002190054,0.16427104,121750.0,121740.0,0.02563987]
[1760002190264,0.16427104,121750.0,121740.0,0.05791987]
[1760002191522,0.16427104,121750.0,121740.0,0.10589987]
[1760002192990,0.16427104,121750.0,121740.0,0.6230844]
[1760002193199,0.16427104,121750.0,121740.0,0.61208269]
[1760002194044,0.16427104,121750.0,121740.0,0.27018441]
[1760002194249,0.16427104,121750.0,121740.0,0.44779815]
[1760002196274,0.16427104,121750.0,121740.0,0.61208269]
[1760002198081,0.16427104,121750.0,121740.0,0.78321593]
[1760002198493,0.16427104,121750.0,121740.0,0.27018441]
[1760002198712,0.16427104,121750.0,121740.0,0.78321593]
[1760002200086,0.16427104,121750.0,121740.0,0.61893139]
[1760002200713,0.16427104,121750.0,121740.0,0.36241563]
[1760002200913,0.16427104,121750.0,121740.0,0.05791987]
[1760002201168,0.16427104,121750.0,121740.0,0.10298987]
[1760002201377,0.16427104,121750.0,121740.0,0.35950563]
[1760002201576,0.16425755,121760.0,121740.0,0.26727441]
[1760002201903,0.16425755,121760.0,121750.0,0.024]
[1760002202423,0.16425755,121760.0,121750.0,0.09996]
[1760002202647,0.16427104,121750.0,121740.0,0.07070987]
[1760002202854,0.16427104,121750.0,121740.0,0.05652987]
[1760002203048,0.16427104,121750.0,121740.0,0.31304563]
[1760002203262,0.16427104,121750.0,121740.0,0.35811563]
[1760002205105,0.16427104,121750.0,121740.0,0.52240017]
[1760002205551,0.16427104,121750.0,121740.0,0.26588441]
[1760002205770,0.16427104,121750.0,121740.0,0.52240017]
[1760002206781,0.16427104,121750.0,121740.0,0.35811563]
[1760002207323,0.16427104,121750.0,121740.0,0.10159987]
[1760002207530,0.16427104,121750.0,121740.0,0.35811563]
[1760002208034,0.16427104,121750.0,121740.0,0.10159987]
[1760002208211,0.16427104,121750.0,121740.0,0.35811563]
[1760002208651,0.16427104,121750.0,121740.0,0.52240017]
[1760002208825,0.16425755,121760.0,121740.0,0.77891593]
[1760002208972,0.16425755,121760.0,121750.0,0.32558576]
[1760002209426,0.16425755,121760.0,121750.0,0.35647576]
[1760002210602,0.16425755,121760.0,121750.0,0.09996]
[1760002210819,0.16425755,121760.0,121750.0,0.35647576]
[1760002211396,0.16425755,121760.0,121750.0,0.09996]
[1760002211985,0.16525755,121760.0,121750.0,0.09996]
[1760002212125,0.16525755,121760.0,121750.0,0.05489]
[1760002212336,0.16525755,121760.0,121750.0,0.31140576]
[1760002212539,0.16525755,121760.0,121750.0,0.05489]
[1760002212970,0.16525755,121760.0,121750.0,0.09996]
[1760002213173,0.16525755,121760.0,121750.0,0.35647576]
[1760002215019,0.16525755,121760.0,121750.0,0.09996]
[1760002215233,0.001,121760.0,121750.0,0.35647576]
[1760002215429,0.001,121760.0,121750.0,0.86038462]
[1760002216625,0.001,121760.0,121750.0,1.54745352]
[1760002216835,0.001,121760.0,121750.0,0.77790624]
[1760002217017,0.001,121760.0,121750.0,1.54745352]
[1760002217219,0.001,121760.0,121750.0,1.29093776]
[1760002217624,0.00056264,121770.0,121760.0,0.50425755]
[1760002217820,0.00056264,121770.0,121760.0,1.42599689]
[1760002218140,0.00056264,121770.0,121760.0,1.20037113]
[1760002218339,0.00056264,121770.0,121760.0,1.45688689]
[1760002218930,0.00056264,121770.0,121760.0,1.48703879]
[1760002226750,0.00056264,121770.0,121760.0,2.25658607]
[1760002226952,0.00056264,121770.0,121760.0,1.48703879]
[1760002227135,0.00056264,121770.0,121760.0,1.51096409]
[1760002228003,0.00056264,121770.0,121760.0,1.51196409]
[1760002229387,0.00056264,121770.0,121760.0,1.48803879]
[1760002235261,0.00056264,121770.0,121760.0,1.23152303]
[1760002235910,0.00056264,121770.0,121760.0,0.71849151]
[1760002236117,0.1648067,121770.0,121760.0,0.34833961]
[1760002236343,0.1648067,121770.0,121760.0,0.86137113]
[1760002236477,0.1648067,121770.0,121760.0,0.69711358]
[1760002237099,0.1648067,121770.0,121760.0,0.86137113]
[1760002237320,0.1648067,121770.0,121760.0,0.86037113]
[1760002237496,0.1648067,121770.0,121760.0,0.69611358]
[1760002238001,0.1648067,121770.0,121760.0,0.05489]
[1760002238204,0.1648067,121770.0,121760.0,0.31140576]
[1760002238623,0.1648067,121770.0,121760.0,0.35808576]
[1760002242499,0.1648067,121770.0,121760.0,0.77885907]
[1760002244645,0.1648067,121770.0,121760.0,0.61460152]
[1760002245168,0.1696067,121770.0,121760.0,0.77885907]
[1760002245390,0.1696067,121770.0,121760.0,0.26582755]
[1760002245592,0.1696067,121770.0,121760.0,0.77885907]
[1760002245790,0.00536264,121770.0,121760.0,0.86198113]
[1760002247382,0.00536264,121770.0,121760.0,1.11849689]
[1760002247799,0.00536264,121770.0,121760.0,1.14864879]
[1760002248450,0.00536264,121770.0,121760.0,1.48864879]
[1760002248908,0.00536264,121770.0,121760.0,1.51329974]
[1760002249355,0.00536264,121770.0,121760.0,2.28284702]
[1760002251064,0.00536264,121770.0,121760.0,1.51429974]
[1760002252317,0.00536264,121770.0,121760.0,2.28384702]
[1760002253324,0.00536264,121770.0,121760.0,1.51429974]
[1760002254375,1e-08,121770.0,121760.0,2.30884701]
[1760002256069,1e-08,121770.0,121760.0,0.76975245]
[1760002256319,1e-08,121770.0,121760.0,2.30884701]
[1760002259995,1e-08,121770.0,121760.0,1.45301491]
[1760002261782,1e-08,121770.0,121760.0,1.5530149]
[1760002264065,1e-08,121770.0,121760.0,1.45201491]
[1760002265048,1e-08,121770.0,121760.0,1.45301491]
[1760002267218,1e-08,121770.0,121760.0,1.5530149]
[1760002268529,1e-08,121770.0,121760.0,1.89464613]
[1760002268741,1e-08,121770.0,121760.0,1.91806394]
[1760002272094,1e-08,121770.0,121760.0,1.89464613]
[1760002272416,1e-08,121770.0,121760.0,1.5530149]
[1760002273440,1e-08,121770.0,121760.0,1.89464613]
[1760002273962,1e-08,121770.0,121760.0,1.5530149]
[1760002275260,1e-08,121770.0,121760.0,1.89464613]
[1760002275809,1e-08,121770.0,121760.0,1.91806394]
[1760002279135,1e-08,121770.0,121760.0,1.5530149]
[1760002285830,1e-08,121770.0,121760.0,1.89464613]
[1760002286858,1e-08,121770.0,121760.0,1.5530149]
[1760002292155,1e-08,121770.0,121760.0,1.45301491]
[1760002292501,1e-08,121770.0,121760.0,1.5530149]
[1760002294584,1e-08,121770.0,121760.0,1.05786302]
[1760002294786,1e-08,121770.0,121760.0,1.08801492]
[1760002294986,1e-08,121770.0,121760.0,1.42801492]
[1760002300748,1e-08,121770.0,121760.0,1.08638369]
[1760002301188,1e-08,121770.0,121760.0,1.42801492]
[1760002301822,1e-08,121770.0,121760.0,0.74475246]
[1760002302015,1e-08,121770.0,121760.0,1.42801492]
[1760002302419,1e-08,121770.0,121760.0,1.42701492]
[1760002308894,1e-08,121770.0,121760.0,1.08538369]
[1760002309269,1e-08,121770.0,121760.0,1.05523179]
[1760002310269,1e-08,121770.0,121760.0,0.71360056]
[1760002310526,1e-08,121770.0,121760.0,1.05523179]
[1760002310934,1e-08,121770.0,121760.0,1.39686302]
[1760002311142,1e-08,121770.0,121760.0,1.42701492]
[1760002314737,0.00821018,121800.0,121780.0,0.16422368]
[1760002314940,0.16421729,121790.0,121780.0,0.14892206]
[1760002315167,0.16421729,121790.0,121780.0,0.68473386]
[1760002320136,0.17292052,121800.0,121780.0,0.68473386]
[1760002320345,0.17292052,121800.0,121790.0,0.34163123]
[1760002320541,0.17292052,121800.0,121790.0,0.36396123]
[1760002320748,0.17292052,121800.0,121790.0,0.60328832]
[1760002320948,0.17445677,121800.0,121790.0,0.60328832]
[1760002321306,0.00204049,121800.0,121790.0,0.60328832]
[1760002321485,0.00204049,121800.0,121790.0,0.68641038]
[1760002321907,0.00204049,121800.0,121790.0,0.85728875]
[1760002322259,0.00304049,121800.0,121790.0,0.85728875]
[1760002323099,0.00404049,121800.0,121790.0,0.85728875]
[1760002323549,0.00404049,121800.0,121790.0,0.34477915]
[1760002323550,0.00304049,121800.0,121790.0,0.34477915]
[1760002323772,0.00304049,121800.0,121790.0,0.85728875]
[1760002323989,0.00404049,121800.0,121790.0,0.60103395]
[1760002325211,0.00404049,121800.0,121790.0,0.85728875]
[1760002325548,0.00404049,121800.0,121790.0,0.60103395]
[1760002326417,0.1682441,121800.0,121790.0,0.34477915]
[1760002326781,0.00404049,121800.0,121790.0,0.60103395]
[1760002327192,0.00404049,121800.0,121790.0,0.85728875]
[1760002330505,0.00404049,121800.0,121790.0,0.91941258]
[1760002333229,0.00404049,121800.0,121790.0,0.40690298]
[1760002333435,0.00404049,121800.0,121790.0,0.91941258]
[1760002333847,0.00404049,121800.0,121790.0,0.66315778]
[1760002334227,0.1682441,121800.0,121790.0,0.66315778]
[1760002334831,0.1682441,121800.0,121790.0,0.40690298]
[1760002335139,0.00404049,121800.0,121790.0,0.66315778]
[1760002337678,0.1682441,121800.0,121790.0,0.66315778]
[1760002338525,0.00404049,121800.0,121790.0,0.66315778]
[1760002340548,0.00404049,121800.0,121790.0,0.91941258]
[1760002340886,0.00404049,121800.0,121790.0,0.66315778]
[1760002343601,0.00404049,121800.0,121790.0,0.60103395]
[1760002343758,0.1682441,121800.0,121790.0,0.34477915]
[1760002343989,0.1682441,121800.0,121790.0,0.60103395]
[1760002344221,0.1682441,121800.0,121790.0,0.18056206]
[1760002344484,0.1682441,121800.0,121790.0,0.60103395]
[1760002344904,0.00404049,121800.0,121790.0,0.60103395]
[1760002347048,0.1682441,121800.0,121790.0,0.60103395]
[1760002347256,0.00404049,121800.0,121790.0,0.60103395]
[1760002348950,0.00404049,121800.0,121790.0,0.85728875]
[1760002349363,0.00404049,121800.0,121790.0,0.60103395]
[1760002354158,0.00404049,121800.0,121790.0,0.85728875]
[1760002355682,0.00404049,121800.0,121790.0,0.88744065]
[1760002359708,0.00404049,121800.0,121790.0,0.94923201]
[1760002360350,0.00404049,121800.0,121790.0,1.28923201]
[1760002361219,0.00404049,121800.0,121790.0,1.31387917]
[1760002361438,0.00404049,121800.0,121790.0,1.57013397]
[1760002362221,0.00304049,121800.0,121790.0,1.57013397]
[1760002362645,0.00404049,121800.0,121790.0,1.57013397]
[1760002362857,0.00304049,121800.0,121790.0,1.57013397]
[1760002367868,0.00304049,121800.0,121790.0,1.31387917]
[1760002368082,0.00304049,121800.0,121790.0,1.05762437]
[1760002368205,0.00304049,121800.0,121790.0,1.31387917]
[1760002368409,0.00304049,121800.0,121790.0,1.05762437]
[1760002368644,0.00304049,121800.0,121790.0,1.31387917]
[1760002370124,0.00820883,121820.0,121800.0,0.16420361]
[1760002370258,0.00820883,121820.0,121810.0,0.2847448]
[1760002370259,0.19308333,121820.0,121810.0,0.2847448]
[1760002370466,0.17256125,121820.0,121810.0,0.2847448]
[1760002370875,0.17358512,121820.0,121810.0,0.3058648]
[1760002371209,0.17358512,121820.0,121810.0,0.47005493]
[1760002371619,0.17458512,121820.0,121810.0,0.25519013]
[1760002371837,0.17558512,121820.0,121810.0,0.47005493]
[1760002372054,0.17558512,121820.0,121800.0,0.26844567]
[1760002372309,0.16420361,121800.0,121790.0,0.06372]
[1760002372501,0.16420361,121800.0,121790.0,0.39019686]
[1760002372709,0.16420361,121800.0,121790.0,0.13394206]
[1760002372918,0.16420361,121800.0,121790.0,0.3070748]
[1760002373129,0.42045841,121800.0,121780.0,0.02404925]
[1760002373339,0.18474422,121790.0,121780.0,0.00136925]
[1760002373576,0.16421709,121790.0,121780.0,0.00136925]
[1760002374227,0.16421709,121790.0,121780.0,0.25762405]
[1760002374438,0.16421709,121790.0,121780.0,0.02985925]
[1760002374555,0.16421709,121790.0,121780.0,0.28611405]
[1760002375173,0.16421709,121790.0,121780.0,0.25762405]
[1760002375803,0.16521709,121790.0,121780.0,0.25762405]
[1760002376946,0.42147189,121790.0,121780.0,0.00136925]
[1760002379384,0.46069696,121790.0,121780.0,0.00136925]
[1760002380648,0.42147189,121790.0,121780.0,0.02871925]
[1760002380861,0.42147189,121790.0,121780.0,0.05123925]
[1760002381388,0.42147189,121790.0,121780.0,0.00136925]
[1760002382177,0.16521709,121790.0,121780.0,0.00136925]
[1760002382414,0.42147189,121790.0,121780.0,0.00136925]
[1760002382654,0.50146869,121790.0,121780.0,0.00136925]
[1760002383380,0.42147189,121790.0,121780.0,0.00136925]
[1760002383819,0.16521709,121790.0,121780.0,0.00136925]
[1760002384054,0.50713962,121790.0,121780.0,0.00136925]
[1760002384501,0.16521709,121790.0,121780.0,0.05123925]
[1760002384964,0.18987349,121790.0,121780.0,0.05123925]
[1760002385609,0.18987349,121790.0,121780.0,0.09392925]
[1760002385831,0.16521709,121790.0,121780.0,0.25815982]
[1760002386559,0.16521709,121790.0,121780.0,0.09392925]
[1760002386789,0.16521709,121790.0,121780.0,0.25815982]
[1760002388034,0.16521709,121790.0,121780.0,0.09392925]
[1760002388483,0.16521709,121790.0,121780.0,0.00136925]
[1760002388696,0.57673945,121790.0,121780.0,0.00136925]
[1760002389113,0.33254205,121790.0,121780.0,0.00136925]
[1760002389319,0.50613962,121790.0,121780.0,0.00136925]
[1760002393415,0.50713962,121790.0,121780.0,0.00136925]
[1760002393646,0.53179707,121790.0,121780.0,0.00136925]
[1760002393875,0.53079707,121790.0,121780.0,0.00136925]
[1760002394049,0.53179707,121790.0,121780.0,0.00136925]
[1760002394222,0.61279387,121790.0,121780.0,0.00136925]
[1760002394632,0.69591593,121790.0,121780.0,0.00136925]
[1760002395040,0.69491593,121790.0,121780.0,0.00136925]
[1760002395821,0.69591593,121790.0,121780.0,0.00136925]
[1760002400239,0.71894603,121790.0,121780.0,0.00136925]
[1760002403863,1.05894603,121790.0,121780.0,0.00136925]
[1760002404704,0.7170235,121790.0,121780.0,0.00136925]
[1760002404913,1.05894603,121790.0,121780.0,0.00136925]
[1760002405783,1.05896347,121790.0,121780.0,0.00136925]
[1760002406592,1.05128677,121790.0,121780.0,0.00136925]
[1760002406785,1.05897181,121790.0,121780.0,0.00136925]
[1760002407727,0.71704928,121790.0,121780.0,0.00136925]
[1760002407951,1.05897181,121790.0,121780.0,0.00136925]
[1760002410436,1.05897099,121790.0,121780.0,0.00136925]
[1760002414296,1.12136573,121790.0,121780.0,0.00136925]
[1760002416676,1.12136699,121790.0,121780.0,0.00136925]
[1760002419977,1.04137019,121790.0,121780.0,0.00136925]
[1760002420591,1.27373019,121790.0,121780.0,0.00136925]
[1760002421201,1.29144877,121790.0,121780.0,0.00136925]
[1760002421414,1.27373019,121790.0,121780.0,0.00136925]
[1760002421828,1.29144895,121790.0,121780.0,0.00136925]
[1760002422034,1.37144575,121790.0,121780.0,0.00136925]
[1760002422499,1.35372699,121790.0,121780.0,0.00136925]
[1760002423340,1.37144856,121790.0,121780.0,0.00136925]
[1760002423535,1.35372699,121790.0,121780.0,0.00136925]
[1760002424226,1.35373888,121790.0,121780.0,0.00136925]
[1760002424661,0.77945635,121790.0,121780.0,0.00136925]
[1760002424871,1.27374208,121790.0,121780.0,0.00136925]
[1760002424999,1.04138208,121790.0,121780.0,0.00136925]
[1760002425201,1.27374208,121790.0,121780.0,0.00136925]
[1760002427973,0.69945955,121790.0,121780.0,0.00136925]
[1760002428175,1.27374208,121790.0,121780.0,0.00136925]
[1760002428375,1.04138208,121790.0,121780.0,0.00136925]
[1760002428716,1.04138585,121790.0,121780.0,0.00136925]
[1760002428872,1.30550726,121790.0,121780.0,0.00136925]
[1760002429478,1.27374585,121790.0,121780.0,0.00136925]
[1760002430319,1.04138585,121790.0,121780.0,0.00136925]
[1760002430695,1.27374585,121790.0,121780.0,0.00136925]
[1760002433042,1.04138585,121790.0,121780.0,0.00136925]
[1760002433244,1.04138585,121790.0,121780.0,1e-08]
[1760002433461,1.12138265,121790.0,121780.0,1e-08]
[1760002433794,1.35374265,121790.0,121780.0,1e-08]
[1760002434287,1.35274265,121790.0,121780.0,1e-08]
[1760002434667,1.12138265,121790.0,121780.0,1e-08]
[1760002434870,1.36014585,121790.0,121780.0,1e-08]
[1760002439045,1.27474585,121790.0,121780.0,1e-08]
[1760002440150,1.04238585,121790.0,121780.0,1e-08]
[1760002440275,1.27474585,121790.0,121780.0,1e-08]
[1760002440495,1.04238585,121790.0,121780.0,1e-08]
[1760002440695,1.35474265,121790.0,121780.0,1e-08]
[1760002441565,1.12238265,121790.0,121780.0,1e-08]
[1760002441726,1.35474265,121790.0,121780.0,1e-08]
[1760002442433,1.12238265,121790.0,121780.0,1e-08]
[1760002442643,1.35474265,121790.0,121780.0,1e-08]
[1760002442849,1.12238265,121790.0,121780.0,1e-08]
[1760002443081,1.35474265,121790.0,121780.0,1e-08]
[1760002443607,1.12238265,121790.0,121780.0,1e-08]
[1760002443789,1.33936974,121790.0,121780.0,1e-08]
[1760002443995,1.52591922,121790.0,121780.0,1e-08]
[1760002444644,1.29355922,121790.0,121780.0,1e-08]
[1760002444873,1.52591922,121790.0,121780.0,1e-08]
[1760002445277,1.26938229,121790.0,121780.0,1e-08]
[1760002445477,1.35478229,121790.0,121780.0,1e-08]
[1760002446885,1.61131922,121790.0,121780.0,1e-08]
[1760002447958,1.61131952,121790.0,121780.0,1e-08]
[1760002448992,1.59592137,121790.0,121780.0,1e-08]
[1760002449200,1.59592142,121790.0,121780.0,1e-08]
[1760002449800,1.588222,121790.0,121780.0,1e-08]
[1760002449971,1.59592146,121790.0,121780.0,1e-08]
[1760002450167,1.60362092,121790.0,121780.0,1e-08]
[1760002450719,1.588222,121790.0,121780.0,1e-08]
[1760002451624,1.61132038,121790.0,121780.0,1e-08]
[1760002453323,1.61132096,121790.0,121780.0,1e-08]
[1760002453530,1.42175175,121790.0,121780.0,1e-08]
[1760002453674,1.35360884,121790.0,121780.0,1e-08]
[1760002453839,1.61063144,121790.0,121780.0,1e-08]
[1760002455850,1.37827144,121790.0,121780.0,1e-08]
[1760002456091,1.61063144,121790.0,121780.0,1e-08]
[1760002461109,1.52523144,121790.0,121780.0,1e-08]
[1760002461324,1.61067144,121790.0,121780.0,1e-08]
[1760002461524,0.69980078,121790.0,121780.0,1e-08]
[1760002461731,1.53067464,121790.0,121780.0,1e-08]
[1760002462338,1.04177771,121790.0,121780.0,1e-08]
[1760002462624,1.21287464,121790.0,121780.0,1e-08]
[1760002462825,0.36049545,121790.0,121780.0,1e-08]
[1760002463033,0.93483238,121790.0,121780.0,1e-08]
[1760002463328,0.70247238,121790.0,121780.0,1e-08]
[1760002463522,0.98850948,121790.0,121780.0,1e-08]
[1760002464477,0.78659924,121790.0,121780.0,1e-08]
[1760002465111,0.46879924,121790.0,121780.0,1e-08]
[1760002465425,0.78659924,121790.0,121780.0,1e-08]
[1760002465826,0.41512029,121790.0,121780.0,1e-08]
[1760002466123,0.73292029,121790.0,121780.0,1e-08]
[1760002467268,1.07288029,121790.0,121780.0,1e-08]
[1760002467595,0.49858336,121790.0,121780.0,1e-08]
[1760002467904,0.98744029,121790.0,121780.0,1e-08]
[1760002468305,1.05047535,121790.0,121780.0,1e-08]
[1760002469493,0.75512029,121790.0,121780.0,1e-08]
[1760002469686,0.98744029,121790.0,121780.0,1e-08]
[1760002470054,0.78669562,121790.0,121780.0,1e-08]
[1760002470267,1.01901562,121790.0,121780.0,1e-08]
[1760002471070,1.27555255,121790.0,121780.0,1e-08]
[1760002471880,1.01901562,121790.0,121780.0,1e-08]
[1760002472288,2.40298261,121790.0,121780.0,1e-08]
[1760002472565,2.77789265,121790.0,121780.0,1e-08]
[1760002472766,1.70936683,121790.0,121780.0,1e-08]
[1760002473101,1.55776207,121790.0,121780.0,1e-08]
[1760002473324,2.21780207,121790.0,121780.0,1e-08]
[1760002473504,2.20263409,121790.0,121780.0,1e-08]
[1760002473704,1.96979409,121790.0,121780.0,1e-08]
[1760002473913,2.20263409,121790.0,121780.0,1e-08]
[1760002474569,2.22480207,121790.0,121780.0,1e-08]
[1760002474757,1.99196207,121790.0,121780.0,1e-08]
[1760002474981,2.22480207,121790.0,121780.0,1e-08]
[1760002476538,2.21800278,121790.0,121780.0,1e-08]
[1760002476767,1.98516278,121790.0,121780.0,1e-08]
[1760002477009,2.21796278,121790.0,121780.0,1e-08]
[1760002477221,1.98516278,121790.0,121780.0,1e-08]
[1760002477431,2.21796278,121790.0,121780.0,1e-08]
[1760002478255,1.98516278,121790.0,121780.0,1e-08]
[1760002478475,2.21796278,121790.0,121780.0,1e-08]
[1760002479156,2.30445278,121790.0,121780.0,1e-08]
[1760002479586,2.74975278,121790.0,121780.0,1e-08]
[1760002479800,2.51695278,121790.0,121780.0,1e-08]
[1760002479998,2.74971278,121790.0,121780.0,1e-08]
[1760002480397,2.51695278,121790.0,121780.0,1e-08]
[1760002480604,2.74971278,121790.0,121780.0,1e-08]
[1760002481046,0.2438886,121790.0,121780.0,1e-08]
[1760002481248,0.71011923,121790.0,121780.0,1e-08]
[1760002481854,1.04611923,121790.0,121780.0,1e-08]
[1760002482066,0.41042268,121790.0,121780.0,1e-08]
[1760002482272,0.41342268,121790.0,121780.0,1e-08]
[1760002482479,0.64642268,121790.0,121780.0,1e-08]
[1760002483099,0.64342268,121790.0,121780.0,1e-08]
[1760002483532,0.64542268,121790.0,121780.0,1e-08]
[1760002483740,0.41242268,121790.0,121780.0,1e-08]
[1760002483941,1.05397668,121790.0,121780.0,1e-08]
[1760002484883,0.98546268,121790.0,121780.0,1e-08]
[1760002487942,0.41276369,121790.0,121780.0,0.02808001]
[1760002488484,0.64568369,121790.0,121780.0,0.04945001]
[1760002488682,0.41276369,121790.0,121780.0,0.04945001]
[1760002488883,0.07276369,121790.0,121780.0,0.04945001]
[1760002489089,0.32625082,121790.0,121780.0,0.04945001]
[1760002489294,0.30572369,121790.0,121780.0,0.04945001]
[1760002489511,0.19387969,121790.0,121780.0,0.47021751]
[1760002489743,0.0296626,121790.0,121780.0,0.8536865]
[1760002490397,0.005,121790.0,121780.0,0.8536865]
[1760002490720,0.002,121790.0,121780.0,0.8536865]
[1760002490930,0.20938321,121800.0,121790.0,0.16421709]
[1760002491135,0.18885776,121800.0,121790.0,0.47020402]
[1760002491344,0.18885776,121800.0,121790.0,0.51401402]
[1760002491556,0.02465358,121800.0,121790.0,0.51401402]
[1760002491978,0.17291161,121810.0,121790.0,0.59713608]
[1760002492183,0.17291161,121810.0,121800.0,0.27790693]
[1760002492394,0.19756365,121810.0,121800.0,0.32171693]
[1760002492608,0.19756365,121810.0,121800.0,0.34979693]
[1760002493254,0.19756365,121810.0,121800.0,0.51400054]
[1760002493455,0.19756365,121810.0,121800.0,0.74700054]
[1760002493903,0.02516402,121810.0,121800.0,0.74700054]
[1760002494111,0.02716402,121810.0,121800.0,0.74700054]
[1760002494344,0.19135415,121810.0,121800.0,0.74700054]
[1760002494550,0.19235415,121810.0,121800.0,0.74700054]
[1760002494756,0.19235415,121810.0,121800.0,1.00353747]
[1760002495169,0.19235415,121810.0,121800.0,0.25746361]
[1760002495386,0.19235415,121810.0,121800.0,0.74696054]
[1760002496043,0.19235415,121810.0,121800.0,1.00349747]
[1760002496462,0.19235415,121810.0,121800.0,0.30598693]
[1760002496674,0.19235415,121810.0,121800.0,0.53890693]
[1760002497082,0.19235415,121810.0,121800.0,0.04945]
[1760002497262,0.19235415,121810.0,121800.0,0.53890693]
[1760002499902,0.19235415,121810.0,121800.0,0.30598693]
[1760002500089,0.25449938,121810.0,121800.0,0.53882693]
[1760002500536,0.19235415,121810.0,121800.0,0.53882693]
[1760002501167,0.02816402,121810.0,121800.0,0.30598693]
[1760002501377,0.02816402,121810.0,121800.0,1.17329953]
[1760002501378,0.00351198,121810.0,121800.0,1.17329953]
[1760002501588,0.00351198,121810.0,121800.0,0.96510916]
[1760002501970,0.00351198,121810.0,121800.0,0.6850353]
[1760002502181,0.00351198,121810.0,121800.0,1.19810916]
[1760002503741,0.02403574,121810.0,121800.0,0.87970916]
[1760002503961,0.18722587,121810.0,121800.0,0.3214253]
[1760002504168,0.16670211,121810.0,121800.0,0.52973567]
[1760002504562,0.16670211,121810.0,121800.0,0.57494567]
[1760002504868,0.16670211,121810.0,121800.0,0.91661513]
[1760002505272,0.16470211,121810.0,121800.0,0.91661513]
[1760002505475,0.16570211,121810.0,121800.0,0.91665513]
[1760002505728,0.16570211,121810.0,121800.0,0.28245]
[1760002506941,0.16570211,121810.0,121800.0,0.44665361]
[1760002507531,0.16570211,121810.0,121800.0,0.49186361]
[1760002507739,0.16570211,121810.0,121800.0,0.49182361]
[1760002507966,0.19035253,121810.0,121800.0,0.49182361]
[1760002508946,0.19035253,121810.0,121800.0,0.32762]
[1760002509143,0.19035253,121810.0,121800.0,0.49182361]
[1760002509348,0.19800685,121810.0,121800.0,0.49182361]
[1760002510456,0.03381672,121810.0,121800.0,0.60053307]
[1760002510865,0.03381672,121810.0,121800.0,0.49178361]
[1760002511060,0.03381672,121810.0,121800.0,0.83345307]
[1760002511679,0.19800685,121810.0,121800.0,0.83345307]
[1760002512147,0.19035253,121810.0,121800.0,0.83345307]
[1760002512293,0.0261624,121810.0,121800.0,0.91657513]
[1760002512480,0.00151198,121810.0,121800.0,0.68365513]
[1760002512683,0.00151198,121810.0,121800.0,0.91653513]
[1760002512881,0.00917563,121810.0,121800.0,0.91653513]
[1760002516423,0.00917563,121810.0,121800.0,0.94118314]
[1760002516791,0.00917563,121810.0,121800.0,0.91653513]
[1760002517623,0.00917563,121810.0,121800.0,0.91649513]
[1760002518188,0.02452675,121810.0,121800.0,0.91649513]
[1760002519742,0.02452675,121810.0,121800.0,0.68365513]
[1760002519944,0.02452675,121810.0,121800.0,0.91649513]
[1760002520150,0.00917563,121810.0,121800.0,0.91649513]
[1760002520592,0.00917563,121810.0,121800.0,0.57482567]
[1760002520793,0.00917563,121810.0,121800.0,0.91649513]
[1760002521352,0.02454899,121810.0,121800.0,0.91649513]
[1760002522028,0.02454899,121810.0,121800.0,0.57482567]
[1760002522231,0.02454899,121810.0,121800.0,0.91649513]
[1760002522804,0.02457254,121810.0,121800.0,0.91649513]
[1760002523959,0.02457254,121810.0,121800.0,1.00177513]
[1760002524207,0.02457254,121810.0,121800.0,0.68365513]
[1760002524499,0.02457254,121810.0,121800.0,1.00173513]
[1760002524963,0.00919918,121810.0,121800.0,1.00173513]
[1760002526539,0.1881766,121820.0,121810.0,0.50585959]
[1760002526755,0.03937649,121820.0,121810.0,0.56938959]
[1760002526967,0.03937649,121820.0,121810.0,0.59645959]
[1760002527165,0.01537694,121820.0,121810.0,0.59645959]
[1760002527405,0.17955359,121820.0,121810.0,0.59645959]
[1760002527831,0.18055359,121820.0,121810.0,0.59645959]
[1760002532182,0.18243451,121820.0,121810.0,0.59645959]
[1760002532958,0.16705757,121820.0,121810.0,0.59645959]
[1760002533147,0.18243956,121820.0,121810.0,0.0906]
[1760002533346,0.18243956,121820.0,121810.0,0.32324]
[1760002533764,0.18243956,121820.0,121810.0,0.3232]
[1760002534206,0.18243956,121820.0,121810.0,0.0906]
[1760002534415,0.18243956,121820.0,121810.0,0.3232]
[1760002535266,0.18243956,121820.0,121810.0,0.48739013]
[1760002536047,0.18243956,121820.0,121810.0,0.0906]
[1760002536242,0.18243956,121820.0,121810.0,0.32316]
[1760002536465,0.16705757,121820.0,121810.0,0.32316]
[1760002538674,0.17474998,121820.0,121810.0,0.32316]
[1760002539142,0.17474998,121820.0,121810.0,0.48735013]
[1760002539373,0.16705757,121820.0,121810.0,0.48735013]
[1760002539648,0.16705757,121820.0,121810.0,0.25479013]
[1760002539862,0.16705757,121820.0,121810.0,0.48731013]
[1760002540600,0.16705757,121820.0,121810.0,0.82897959]
[1760002544259,0.00288092,121820.0,121810.0,0.82897959]
[1760002544470,0.023403,121820.0,121810.0,0.82897959]
[1760002544631,0.023403,121820.0,121810.0,0.59645959]
[1760002544834,0.18757965,121820.0,121810.0,0.82889959]
[1760002545850,0.00288092,121820.0,121810.0,0.91202165]